bitfinex/quotes_BTCUSD_20241107
["timestamp","ask_amount","ask_price","bid_price","bid_amount"]
[1730993359757,1.19519015,75443.0,75442.0,0.001]
[1730993360043,0.26600454,75443.0,75442.0,0.001]
[1730993360244,0.20665487,75443.0,75442.0,0.001]
[1730993360602,0.19265487,75443.0,75437.0,0.033864]
[1730993360801,0.03963772,75439.0,75437.0,0.033864]
[1730993361866,0.03963772,75439.0,75437.0,0.034864]
[1730993362431,0.05363772,75439.0,75437.0,0.033864]
[1730993362626,0.06763772,75439.0,75437.0,0.034864]
[1730993362827,0.05363772,75439.0,75437.0,0.034864]
[1730993363079,0.132559,75438.0,75437.0,0.030164]
[1730993363297,0.49540934,75438.0,75437.0,0.030164]
[1730993363512,0.20764102,75438.0,75437.0,0.030164]
[1730993363729,0.34020002,75438.0,75437.0,0.030164]
[1730993363937,0.34020002,75438.0,75437.0,0.029164]
[1730993364228,0.34020002,75438.0,75437.0,0.030164]
[1730993364477,0.47244279,75438.0,75437.0,0.030164]
[1730993364719,0.56016593,75438.0,75437.0,0.030164]
[1730993364916,0.50070934,75438.0,75437.0,0.030164]
[1730993365119,0.66104235,75438.0,75437.0,0.030164]
[1730993365320,0.66104235,75438.0,75437.0,0.029164]
[1730993365748,0.86822781,75438.0,75437.0,0.030164]
[1730993365960,0.98601849,75438.0,75437.0,0.030164]
[1730993366589,0.98644599,75438.0,75437.0,0.030164]
[1730993366983,0.89315848,75438.0,75437.0,0.029164]
[1730993367186,0.260862,75436.0,75435.0,0.001666]
[1730993367333,0.53944422,75436.0,75435.0,0.001666]
[1730993368060,0.58074502,75436.0,75435.0,0.001666]
[1730993368559,0.59474502,75436.0,75435.0,0.001666]
[1730993368770,0.69044502,75436.0,75435.0,0.001666]
[1730993368958,1.51898779,75436.0,75435.0,0.001666]
[1730993369205,1.72387888,75436.0,75435.0,0.001666]
[1730993370475,2.71537888,75436.0,75435.0,0.001666]
[1730993370699,2.58313611,75436.0,75435.0,0.001666]
[1730993370911,2.73834543,75436.0,75435.0,0.001666]
[1730993371568,2.73820401,75436.0,75435.0,0.001666]
[1730993371988,2.58299469,75436.0,75435.0,0.001666]
[1730993375227,2.49698741,75436.0,75435.0,0.001666]
[1730993375439,2.62919374,75436.0,75435.0,0.001666]
[1730993375649,2.58792938,75436.0,75435.0,0.001666]
[1730993376077,2.71505874,75436.0,75435.0,0.001666]
[1730993376318,2.71503335,75436.0,75435.0,0.001666]
[1730993376537,2.74482868,75436.0,75435.0,0.001666]
[1730993377075,2.74482868,75436.0,75422.0,0.001664]
[1730993377076,0.637885,75423.0,75422.0,0.001664]
[1730993377456,1.51073307,75423.0,75422.0,0.001664]
[1730993378059,1.62444386,75423.0,75422.0,0.001664]
[1730993378384,1.72724853,75423.0,75422.0,0.001664]
[1730993378586,2.01303218,75423.0,75422.0,0.001664]
[1730993378805,1.98508767,75423.0,75422.0,0.001664]
[1730993379017,2.10390178,75423.0,75422.0,0.001664]
[1730993379217,2.08987074,75423.0,75422.0,0.001664]
[1730993379537,2.18970908,75423.0,75422.0,0.001664]
[1730993379745,1.98508767,75423.0,75422.0,0.001664]
[1730993379952,1.97108767,75423.0,75422.0,0.001664]
[1730993380173,2.09590029,75423.0,75422.0,0.001664]
[1730993380378,2.08010496,75423.0,75422.0,0.001664]
[1730993380924,2.06610496,75423.0,75422.0,0.001664]
[1730993381165,2.08004621,75423.0,75422.0,0.001664]
[1730993381408,2.15919638,75423.0,75422.0,0.001664]
[1730993381618,1.43274102,75423.0,75422.0,0.001664]
[1730993381839,1.34144102,75423.0,75422.0,0.001664]
[1730993382317,1.32744102,75423.0,75422.0,0.001664]
[1730993382535,1.34144102,75423.0,75422.0,0.001664]
[1730993382986,1.32744102,75423.0,75422.0,0.001664]
[1730993383648,1.34144102,75423.0,75422.0,0.001664]
[1730993383869,1.47368379,75423.0,75422.0,0.001664]
[1730993384791,1.34144102,75423.0,75422.0,0.001664]
[1730993385016,1.38501496,75423.0,75422.0,0.001664]
[1730993385474,0.75277394,75423.0,75422.0,0.001664]
[1730993385676,0.75277394,75423.0,75422.0,0.137264]
[1730993385885,0.75277394,75423.0,75422.0,0.139264]
[1730993386560,0.72477394,75423.0,75422.0,0.139264]
[1730993386783,0.73877394,75423.0,75422.0,0.137264]
[1730993386990,0.75277394,75423.0,75422.0,0.137264]
[1730993387153,0.75277394,75423.0,75422.0,0.139264]
[1730993387359,0.73877394,75423.0,75422.0,0.139264]
[1730993387564,0.6952,75423.0,75422.0,0.139264]
[1730993387914,0.7092,75423.0,75422.0,0.139264]
[1730993388130,0.6812,75423.0,75422.0,0.139264]
[1730993388358,0.3305,75426.0,75425.0,0.0067]
[1730993388588,0.3305,75426.0,75425.0,0.0117]
[1730993389027,0.3305,75426.0,75425.0,0.0261264]
[1730993389441,0.3305,75426.0,75425.0,0.0117]
[1730993390409,0.3305,75426.0,75425.0,0.1439]
[1730993390607,0.331,75429.0,75428.0,0.1489]
[1730993390807,0.331,75429.0,75428.0,0.43635034]
[1730993392203,0.332,75429.0,75428.0,0.43735034]
[1730993392644,0.332,75429.0,75428.0,0.48015575]
[1730993392866,0.332,75429.0,75428.0,0.49015575]
[1730993393087,0.332,75429.0,75428.0,0.53953773]
[1730993393312,0.333,75429.0,75428.0,0.33794643]
[1730993396142,0.332,75429.0,75428.0,0.33494643]
[1730993396598,0.333,75429.0,75428.0,0.33794643]
[1730993396812,0.333,75429.0,75428.0,0.1529]
[1730993397023,0.332,75429.0,75428.0,0.0127]
[1730993397245,0.333,75429.0,75428.0,0.0157]
[1730993397901,0.332,75429.0,75428.0,0.0127]
[1730993398336,0.332,75429.0,75428.0,0.19454102]
[1730993398551,0.332,75429.0,75428.0,0.30678245]
[1730993398755,0.331,75429.0,75428.0,0.30578245]
[1730993399197,0.345,75429.0,75428.0,0.32078245]
[1730993399415,0.359,75429.0,75428.0,0.32078245]
[1730993399614,0.331,75429.0,75428.0,0.32078245]
[1730993400005,0.333,75429.0,75428.0,0.32478245]
[1730993400281,0.332,75429.0,75428.0,0.32378245]
[1730993400487,0.19908195,75429.0,75428.0,0.32078245]
[1730993400660,0.20008195,75429.0,75428.0,0.42178245]
[1730993400884,0.20008195,75429.0,75428.0,0.42578245]
[1730993401097,0.20008195,75429.0,75428.0,0.46907958]
[1730993401299,0.20108195,75429.0,75428.0,0.47007958]
[1730993401665,0.20098595,75429.0,75428.0,0.47007958]
[1730993402218,0.19998595,75429.0,75428.0,0.46707958]
[1730993402433,0.19898595,75429.0,75428.0,0.46907958]
[1730993402657,0.001,75429.0,75428.0,0.46907958]
[1730993402882,0.002,75429.0,75428.0,0.47007958]
[1730993403098,4e-05,75430.0,75429.0,0.0247]
[1730993403326,4e-05,75430.0,75429.0,0.33684898]
[1730993403781,4e-05,75430.0,75429.0,0.33884898]
[1730993404882,4e-05,75430.0,75429.0,0.36184898]
[1730993405090,0.000833,75435.0,75434.0,0.2802]
[1730993405308,0.000833,75437.0,75436.0,0.2802]
[1730993405565,0.000833,75437.0,75436.0,0.63963111]
[1730993405791,0.19994268,75446.0,75443.0,0.0287]
[1730993406013,0.19994268,75446.0,75443.0,0.39054102]
[1730993406247,0.19994268,75465.0,75443.0,0.54575034]
[1730993406477,0.19994268,75465.0,75443.0,0.39054102]
[1730993406708,0.19994268,75465.0,75443.0,0.60032537]
[1730993407212,0.19994268,75465.0,75443.0,0.49032537]
[1730993407443,0.19994268,75465.0,75443.0,0.0157]
[1730993407444,0.09641041,75444.0,75443.0,0.0157]
[1730993407671,0.09741041,75444.0,75443.0,0.0147]
[1730993408936,0.09641041,75444.0,75443.0,0.0227]
[1730993409054,0.09641041,75444.0,75443.0,0.0337]
[1730993409267,0.09641041,75444.0,75443.0,0.31319704]
[1730993410129,0.09641041,75444.0,75443.0,0.28754102]
[1730993410336,0.09641041,75444.0,75443.0,0.0337]
[1730993411620,0.09641041,75444.0,75443.0,0.029]
[1730993411828,0.09641041,75444.0,75443.0,0.0267]
[1730993412717,0.09641041,75444.0,75443.0,0.16394102]
[1730993412927,0.09641041,75444.0,75443.0,0.19655605]
[1730993413577,0.09641041,75444.0,75443.0,0.16394102]
[1730993413995,0.09641041,75444.0,75443.0,0.16594102]
[1730993414229,0.09641041,75444.0,75443.0,0.3985387]
[1730993414487,0.09641041,75444.0,75443.0,0.4764387]
[1730993414670,0.09641041,75444.0,75443.0,0.4744387]
[1730993414857,0.09641041,75444.0,75443.0,0.53243517]
[1730993415409,0.09641041,75444.0,75443.0,0.53443517]
[1730993415661,0.09641041,75444.0,75443.0,0.53243517]
[1730993416464,0.09641041,75444.0,75443.0,0.4744387]
[1730993417257,0.09641041,75444.0,75443.0,0.16594102]
[1730993418900,0.09641041,75444.0,75443.0,0.0317]
[1730993419351,0.09641041,75444.0,75443.0,0.0337]
[1730993422910,0.09641041,75444.0,75443.0,0.0267]
[1730993423369,0.09641041,75444.0,75443.0,0.022]
[1730993424711,0.09641041,75444.0,75443.0,0.011]
[1730993425145,0.10841041,75444.0,75443.0,0.012]
[1730993425578,0.10841041,75444.0,75443.0,0.011]
[1730993425579,0.27143965,75444.0,75443.0,0.011]
[1730993425795,0.31893965,75444.0,75443.0,0.011]
[1730993426057,0.26389165,75444.0,75439.0,0.0047]
[1730993426272,0.27789165,75444.0,75443.0,0.001]
[1730993426493,0.27589165,75444.0,75443.0,0.001]
[1730993426948,0.28989165,75444.0,75443.0,0.002]
[1730993427163,0.42243965,75444.0,75443.0,0.002]
[1730993428259,0.55468067,75444.0,75443.0,0.002]
[1730993428518,0.137859,75438.0,75437.0,0.001666]
[1730993428741,0.35300002,75438.0,75437.0,0.001666]
[1730993428978,0.40493137,75438.0,75437.0,0.001666]
[1730993429213,0.4848744,75438.0,75437.0,0.001666]
[1730993429453,0.95849961,75438.0,75437.0,0.001666]
[1730993429668,0.9584872,75438.0,75437.0,0.001666]
[1730993430131,0.9704872,75438.0,75437.0,0.002666]
[1730993430366,1.06353534,75438.0,75437.0,0.003666]
[1730993430595,1.03753534,75438.0,75437.0,0.001666]
[1730993430804,0.98845039,75438.0,75437.0,0.001666]
[1730993431019,0.73785271,75438.0,75437.0,0.001666]
[1730993431279,0.30270455,75438.0,75437.0,0.002666]
[1730993431482,0.014,75438.0,75437.0,0.009366]
[1730993431689,0.014,75438.0,75437.0,0.014366]
[1730993432373,0.028,75438.0,75437.0,0.014366]
[1730993432835,0.09491041,75444.0,75437.0,0.013366]
[1730993433042,0.09491041,75444.0,75442.0,0.002]
[1730993433700,0.09491041,75444.0,75440.0,0.0067]
[1730993433935,0.09491041,75444.0,75438.0,0.0047]
[1730993433936,0.082,75443.0,75438.0,0.0047]
[1730993434161,0.17004225,75443.0,75438.0,0.0047]
[1730993434431,0.17004225,75443.0,75440.0,0.0047]
[1730993434619,0.17004225,75443.0,75437.0,0.008666]
[1730993434620,0.12156925,75443.0,75438.0,0.0047]
[1730993434828,0.12240125,75443.0,75437.0,0.001666]
[1730993435056,0.132559,75438.0,75437.0,0.001666]
[1730993435259,0.17212825,75438.0,75437.0,0.001666]
[1730993435481,0.26480002,75438.0,75437.0,0.001666]
[1730993435685,0.78246958,75438.0,75437.0,0.001666]
[1730993436346,0.64991058,75438.0,75437.0,0.001666]
[1730993436561,0.92863178,75438.0,75437.0,0.001666]
[1730993436771,0.98614392,75438.0,75437.0,0.001666]
[1730993437478,0.98777436,75438.0,75437.0,0.001666]
[1730993437680,1.00014255,75438.0,75437.0,0.001666]
[1730993437916,0.98084255,75438.0,75437.0,0.001666]
[1730993438092,0.83998035,75438.0,75437.0,0.001666]
[1730993438309,0.98622312,75438.0,75437.0,0.001666]
[1730993438513,0.83998035,75438.0,75437.0,0.001666]
[1730993439238,0.82598035,75438.0,75437.0,0.001666]
[1730993439450,0.90098035,75438.0,75437.0,0.001666]
[1730993439659,0.91498035,75438.0,75437.0,0.001666]
[1730993439788,0.92898035,75438.0,75437.0,0.001666]
[1730993439983,1.06122312,75438.0,75437.0,0.001666]
[1730993440202,1.08422312,75438.0,75437.0,0.001666]
[1730993440420,1.07022312,75438.0,75437.0,0.001666]
[1730993440849,1.08422312,75438.0,75437.0,0.001666]
[1730993441059,1.05622312,75438.0,75437.0,0.001666]
[1730993441289,1.07022312,75438.0,75437.0,0.001666]
[1730993441493,1.08422312,75438.0,75437.0,0.001666]
[1730993441897,0.93798035,75438.0,75437.0,0.001666]
[1730993442228,1.01132797,75438.0,75437.0,0.001666]
[1730993442439,0.98832797,75438.0,75437.0,0.001666]
[1730993442642,0.97432797,75438.0,75437.0,0.001666]
[1730993443070,0.98832797,75438.0,75437.0,0.001666]
[1730993443489,0.97432797,75438.0,75437.0,0.001666]
[1730993443718,0.98832797,75438.0,75437.0,0.001666]
[1730993444127,0.97432797,75438.0,75437.0,0.001666]
[1730993444343,0.85576897,75438.0,75437.0,0.001666]
[1730993444553,0.98832797,75438.0,75437.0,0.001666]
[1730993444772,0.97432204,75438.0,75437.0,0.001666]
[1730993445272,1.02994504,75438.0,75437.0,0.001666]
[1730993445485,0.97432204,75438.0,75437.0,0.001666]
[1730993445710,0.82746304,75438.0,75437.0,0.001666]
[1730993445947,0.97432204,75438.0,75437.0,0.001666]
[1730993446379,0.84176304,75438.0,75437.0,0.001666]
[1730993446604,0.92897442,75438.0,75437.0,0.001666]
[1730993446807,0.944924,75438.0,75437.0,0.001666]
[1730993446994,0.91497442,75438.0,75437.0,0.001666]
[1730993447135,0.1641744,75438.0,75437.0,0.001666]
[1730993447337,0.1498744,75438.0,75437.0,0.001666]
[1730993447577,0.2824334,75438.0,75437.0,0.001666]
[1730993447978,0.2964334,75438.0,75437.0,0.001666]
[1730993448126,0.1638744,75438.0,75437.0,0.001666]
[1730993448343,0.2964334,75438.0,75437.0,0.001666]
[1730993448583,0.15151214,75438.0,75437.0,0.001666]
[1730993448814,0.042,75438.0,75437.0,0.006366]
[1730993449045,0.042,75438.0,75437.0,0.26650702]
[1730993449277,0.028,75438.0,75437.0,0.35876953]
[1730993449526,0.04037624,75438.0,75437.0,0.35876953]
[1730993449767,0.04037624,75438.0,75437.0,0.36076953]
[1730993449768,0.02637624,75438.0,75437.0,0.36076953]
[1730993449978,0.02637624,75438.0,75437.0,0.36576953]
[1730993450177,0.04037624,75438.0,75437.0,0.37576953]
[1730993450581,0.04037624,75438.0,75437.0,0.37776953]
[1730993450819,0.000832,75443.0,75442.0,0.0287]
[1730993451036,0.000791,75450.0,75449.0,0.0287]
[1730993451268,0.000791,75450.0,75449.0,0.4698387]
[1730993451495,0.19994268,75463.0,75453.0,0.0267]
[1730993451700,0.19994268,75463.0,75453.0,0.16359121]
[1730993452119,4e-05,75468.0,75453.0,0.16359121]
[1730993452541,4e-05,75468.0,75453.0,0.18394102]
[1730993452786,4e-05,75468.0,75453.0,0.24808489]
[1730993453042,4e-05,75468.0,75455.0,0.0267]
[1730993453243,4e-05,75468.0,75455.0,0.25894102]
[1730993453449,4e-05,75468.0,75455.0,0.26094102]
[1730993454277,0.001751,75456.0,75455.0,0.27494102]
[1730993454419,0.001751,75456.0,75455.0,0.33375188]
[1730993455022,0.001751,75456.0,75455.0,0.33175188]
[1730993455225,0.001751,75456.0,75455.0,0.33375188]
[1730993455702,0.001751,75456.0,75455.0,0.34775188]
[1730993456039,0.001751,75456.0,75455.0,0.34575188]
[1730993457059,0.000751,75456.0,75455.0,0.0257]
[1730993457880,0.001751,75456.0,75455.0,0.0397]
[1730993458251,0.001751,75456.0,75455.0,0.0257]
[1730993458452,0.000751,75456.0,75455.0,0.0257]
[1730993458657,0.001751,75456.0,75455.0,0.05954094]
[1730993459154,0.001751,75456.0,75455.0,0.0257]
[1730993459512,0.002751,75456.0,75455.0,0.0397]
[1730993460116,0.002751,75456.0,75455.0,0.0347]
[1730993460529,0.002751,75456.0,75455.0,0.0397]
[1730993460904,0.002751,75456.0,75455.0,0.17194102]
[1730993461125,0.002751,75456.0,75455.0,0.21385994]
[1730993461756,0.002751,75456.0,75455.0,0.08161892]
[1730993461961,0.002751,75456.0,75455.0,0.0397]
[1730993464053,0.002751,75456.0,75455.0,0.17194102]
[1730993464617,0.002751,75456.0,75455.0,0.17394102]
[1730993464819,0.002751,75456.0,75455.0,0.17194102]
[1730993465172,0.002751,75456.0,75455.0,0.21760288]
[1730993465646,0.002751,75456.0,75455.0,0.17194102]
[1730993466292,0.002751,75456.0,75455.0,0.035]
[1730993466507,0.002751,75456.0,75455.0,0.03]
[1730993467735,0.001791,75456.0,75455.0,0.016]
[1730993468158,0.001791,75456.0,75455.0,0.014]
[1730993468361,0.013791,75456.0,75455.0,0.015]
[1730993468657,0.012791,75456.0,75455.0,0.001]
[1730993468891,0.27755902,75456.0,75455.0,0.001]
[1730993469230,0.27755902,75456.0,75455.0,0.002]
[1730993469231,0.15903202,75456.0,75455.0,0.002]
[1730993469434,0.15903202,75456.0,75455.0,0.004]
[1730993469632,0.29155902,75456.0,75455.0,0.002]
[1730993470677,0.15903202,75456.0,75455.0,0.002]
[1730993470849,0.026791,75456.0,75455.0,0.002]
[1730993472144,0.016791,75456.0,75455.0,0.002]
[1730993472372,0.016791,75456.0,75455.0,0.004]
[1730993472628,0.016791,75456.0,75455.0,0.002]
[1730993472850,0.28685902,75456.0,75455.0,0.002]
[1730993473078,0.80985902,75456.0,75455.0,0.002]
[1730993473925,0.90706802,75456.0,75455.0,0.001]
[1730993474361,1.04526802,75456.0,75455.0,0.002]
[1730993474582,0.137857,75439.0,75437.0,0.001666]
[1730993474801,0.31779802,75439.0,75437.0,0.001666]
[1730993476163,0.18524102,75439.0,75437.0,0.001666]
[1730993476373,0.442604,75442.0,75437.0,0.001666]
[1730993476374,0.0775,75442.0,75437.0,0.001666]
[1730993476574,0.155,75443.0,75437.0,0.001666]
[1730993476825,0.514,75439.0,75437.0,0.001666]
[1730993477041,0.78009802,75439.0,75438.0,0.031]
[1730993477265,0.79409802,75439.0,75438.0,0.031]
[1730993477480,0.77009802,75439.0,75438.0,0.03]
[1730993477679,0.84999802,75439.0,75438.0,0.03]
[1730993477882,0.98224079,75439.0,75438.0,0.031]
[1730993479013,0.98224079,75439.0,75438.0,0.03]
[1730993479225,0.84999802,75439.0,75438.0,0.03]
[1730993479429,0.86399802,75439.0,75438.0,0.03]
[1730993479641,0.87799802,75439.0,75438.0,0.03]
[1730993480748,0.028,75439.0,75438.0,0.03]
[1730993481396,0.028,75439.0,75438.0,0.0417]
[1730993482049,0.014,75439.0,75438.0,0.0417]
[1730993482254,0.005,75456.0,75447.0,0.0047]
[1730993482491,0.66003528,75453.0,75449.0,0.002]
[1730993483167,0.70299952,75453.0,75444.0,0.002]
[1730993483380,0.70299952,75453.0,75444.0,0.0117]
[1730993483590,0.70299952,75453.0,75452.0,0.002]
[1730993483813,0.71699952,75453.0,75452.0,0.002]
[1730993484055,0.70299952,75453.0,75452.0,0.002]
[1730993485352,0.70299952,75453.0,75445.0,0.002]
[1730993485588,0.86353252,75453.0,75445.0,0.002]
[1730993485792,0.71699952,75453.0,75446.0,0.0047]
[1730993486007,0.70299952,75453.0,75446.0,0.0047]
[1730993486228,0.71699952,75453.0,75452.0,0.11]
[1730993486441,0.70299952,75453.0,75452.0,0.11]
[1730993486914,0.73099952,75453.0,75452.0,0.11]
[1730993487142,0.71699952,75453.0,75452.0,0.11]
[1730993487568,0.73099952,75453.0,75452.0,0.11]
[1730993488258,0.86353152,75453.0,75452.0,0.11]
[1730993488465,0.73099952,75453.0,75452.0,0.11]
[1730993488688,0.86353152,75453.0,75452.0,0.11]
[1730993488894,0.56863494,75453.0,75452.0,0.11]
[1730993489096,0.71773494,75453.0,75452.0,0.11]
[1730993489304,0.75719114,75453.0,75452.0,0.11]
[1730993489549,0.0053,75449.0,75438.0,0.031664]
[1730993489740,0.57990294,75453.0,75438.0,0.031664]
[1730993489741,0.13755,75443.0,75442.0,0.19994268]
[1730993489955,0.132557,75439.0,75438.0,0.031664]
[1730993490168,0.005,75441.0,75438.0,0.031664]
[1730993490383,0.76479802,75439.0,75438.0,0.031664]
[1730993490592,0.84409802,75439.0,75438.0,0.031664]
[1730993492946,0.85809802,75439.0,75438.0,0.031664]
[1730993493172,0.90038163,75439.0,75438.0,0.031664]
[1730993493420,0.91438163,75439.0,75438.0,0.031664]
[1730993493625,1.0466244,75439.0,75438.0,0.031664]
[1730993493851,0.91438163,75439.0,75438.0,0.031664]
[1730993495018,1.56607931,75439.0,75438.0,0.031664]
[1730993495244,0.260859,75438.0,75437.0,1e-08]
[1730993495478,0.39310002,75438.0,75437.0,1e-08]
[1730993495714,0.8264345,75438.0,75437.0,1e-08]
[1730993495987,0.8264345,75438.0,75410.0,0.005]
[1730993495988,0.760885,75423.0,75412.0,0.19994268]
[1730993496230,1.441585,75423.0,75412.0,0.19994268]
[1730993496453,1.4761644,75423.0,75412.0,0.19994268]
[1730993497353,1.60840542,75423.0,75412.0,0.19994268]
[1730993497582,1.41824102,75423.0,75412.0,0.19994268]
[1730993497815,1.31794102,75423.0,75413.0,0.0047]
[1730993498035,0.4153,75423.0,75422.0,0.011364]
[1730993498280,0.15,75423.0,75422.0,0.013364]
[1730993498796,0.164,75423.0,75422.0,0.013364]
[1730993498990,0.15,75423.0,75422.0,0.013364]
[1730993499576,0.151,75423.0,75422.0,0.013364]
[1730993499785,0.152,75423.0,75422.0,0.001664]
[1730993499979,0.284585,75423.0,75422.0,0.001664]
[1730993500186,0.152,75423.0,75422.0,0.001664]
[1730993500764,0.284585,75423.0,75422.0,0.001664]
[1730993500944,0.49812602,75423.0,75422.0,0.001664]
[1730993501180,0.49712602,75423.0,75422.0,0.001664]
[1730993501395,0.64336879,75423.0,75422.0,0.001664]
[1730993501603,0.65736879,75423.0,75422.0,0.001664]
[1730993501807,0.64336879,75423.0,75422.0,0.001664]
[1730993502027,0.78036879,75423.0,75422.0,0.001664]
[1730993502468,0.75236879,75423.0,75422.0,0.001664]
[1730993502673,0.76636879,75423.0,75422.0,0.001664]
[1730993502888,0.62512602,75423.0,75422.0,0.001664]
[1730993503087,0.53412602,75423.0,75422.0,0.001664]
[1730993503298,0.164,75423.0,75422.0,0.006664]
[1730993503759,0.164,75423.0,75422.0,0.011364]
[1730993504591,0.178,75423.0,75422.0,0.001664]
[1730993504809,0.164,75423.0,75422.0,0.006364]
[1730993505023,0.178,75423.0,75422.0,0.006364]
[1730993505237,0.164,75423.0,75422.0,0.006364]
[1730993505886,0.178,75423.0,75422.0,0.006364]
[1730993506119,0.15,75423.0,75422.0,0.006364]
[1730993506334,0.151,75423.0,75422.0,0.006364]
[1730993506583,0.151,75423.0,75422.0,0.001664]
[1730993506788,0.151,75423.0,75422.0,0.006364]
[1730993507020,0.151,75423.0,75422.0,0.001664]
[1730993507229,0.151,75423.0,75422.0,0.006364]
[1730993507653,0.282585,75423.0,75422.0,0.001664]
[1730993507856,0.164,75423.0,75422.0,0.001664]
[1730993508054,0.165,75423.0,75422.0,0.002664]
[1730993508496,0.282585,75423.0,75422.0,0.001664]
[1730993508718,0.310585,75423.0,75422.0,0.001664]
[1730993508935,0.296585,75423.0,75422.0,0.001664]
[1730993509144,0.49682602,75423.0,75422.0,0.001664]
[1730993509367,0.49712602,75423.0,75422.0,0.001664]
[1730993509584,0.52512602,75423.0,75422.0,0.001664]
[1730993509816,0.54812602,75423.0,75422.0,0.001664]
[1730993510477,0.68036879,75423.0,75422.0,0.001664]
[1730993510750,0.66636879,75423.0,75422.0,0.001664]
[1730993511425,0.76636879,75423.0,75422.0,0.001664]
[1730993511648,1.00827295,75423.0,75422.0,0.001664]
[1730993511869,1.04019342,75423.0,75422.0,0.001664]
[1730993512092,1.02619342,75423.0,75422.0,0.001664]
[1730993512567,1.01619342,75423.0,75422.0,0.001664]
[1730993513012,1.00219342,75423.0,75422.0,0.001664]
[1730993513217,0.97027295,75423.0,75422.0,0.001664]
[1730993513430,0.83803018,75423.0,75422.0,0.001664]
[1730993513813,0.86995065,75423.0,75422.0,0.001664]
[1730993514043,0.84595065,75423.0,75422.0,0.001664]
[1730993514252,0.85995065,75423.0,75422.0,0.001664]
[1730993514469,0.87395065,75423.0,75422.0,0.001664]
[1730993514676,0.84595065,75423.0,75422.0,0.001664]
[1730993515094,0.99219342,75423.0,75422.0,0.001664]
[1730993515312,0.96027295,75423.0,75422.0,0.001664]
[1730993515547,0.81403018,75423.0,75422.0,0.001664]
[1730993515747,0.82803018,75423.0,75422.0,0.001664]
[1730993515965,0.85995065,75423.0,75422.0,0.001664]
[1730993516175,0.87653018,75423.0,75422.0,0.001664]
[1730993516415,1.05442087,75423.0,75422.0,0.001664]
[1730993516623,1.0365004,75423.0,75422.0,0.001664]
[1730993516872,1.06842087,75423.0,75422.0,0.001664]
[1730993517099,1.20066364,75423.0,75422.0,0.001664]
[1730993517297,1.29952031,75423.0,75422.0,0.001664]
[1730993517551,1.28552031,75423.0,75422.0,0.001664]
[1730993517783,0.94799106,75423.0,75422.0,0.001664]
[1730993518034,0.18353909,75423.0,75422.0,0.001664]
[1730993518229,0.13,75423.0,75422.0,0.006364]
[1730993518452,0.116,75423.0,75422.0,0.008364]
[1730993518675,0.13,75423.0,75422.0,0.008364]
[1730993518902,0.144,75423.0,75422.0,0.008364]
[1730993519115,0.116,75423.0,75422.0,0.008364]
[1730993519537,0.118,75423.0,75422.0,0.009364]
[1730993520410,0.118,75423.0,75422.0,0.014364]
[1730993520623,0.002,75423.0,75422.0,0.089664]
[1730993521095,0.002,75423.0,75422.0,0.1040904]
[1730993521378,0.844,75426.0,75425.0,0.0067]
[1730993521596,0.844,75426.0,75425.0,0.0117]
[1730993522266,0.844,75426.0,75423.0,0.0047]
[1730993522487,0.844,75426.0,75422.0,0.001664]
[1730993522488,0.132585,75423.0,75422.0,0.001664]
[1730993522907,0.26482602,75423.0,75422.0,0.001664]
[1730993524644,0.55255575,75423.0,75422.0,0.001664]
[1730993524873,0.63375575,75423.0,75422.0,0.001664]
[1730993525078,0.7907473,75423.0,75422.0,0.002664]
[1730993525277,0.64475575,75423.0,75422.0,0.002664]
[1730993525487,0.63375575,75423.0,75422.0,0.001664]
[1730993525729,0.76599852,75423.0,75422.0,0.001664]
[1730993525993,0.79099852,75423.0,75422.0,0.003664]
[1730993526221,1.35505575,75423.0,75422.0,0.003664]
[1730993526427,1.41436764,75423.0,75422.0,0.003664]
[1730993527075,1.40336764,75423.0,75422.0,0.002664]
[1730993527498,1.38534628,75423.0,75422.0,0.002664]
[1730993527758,1.39934628,75423.0,75422.0,0.003664]
[1730993527979,1.45761879,75423.0,75422.0,0.003664]
[1730993528194,1.45761879,75423.0,75422.0,0.002664]
[1730993528195,1.44361879,75423.0,75422.0,0.002664]
[1730993528404,1.44361879,75423.0,75422.0,0.003664]
[1730993528628,1.45761879,75423.0,75422.0,0.003664]
[1730993529078,1.43128479,75423.0,75422.0,0.001664]
[1730993529299,1.656348,75423.0,75422.0,0.001664]
[1730993529533,0.660908,75410.0,75409.0,0.001664]
[1730993529785,1.42384902,75410.0,75409.0,0.001664]
[1730993530696,1.43784902,75410.0,75409.0,0.002664]
[1730993531139,1.51994902,75410.0,75409.0,0.002664]
[1730993531368,1.53394902,75410.0,75409.0,0.003664]
[1730993531821,1.51994902,75410.0,75409.0,0.002664]
[1730993532064,1.87751671,75410.0,75409.0,0.002664]
[1730993532274,1.46894043,75410.0,75409.0,0.003664]
[1730993532488,1.39151671,75410.0,75409.0,0.003664]
[1730993532717,1.37751671,75410.0,75409.0,0.002664]
[1730993532942,1.37751671,75410.0,75387.0,0.20694268]
[1730993532943,0.655631,75397.0,75396.0,0.19994268]
[1730993533167,1.13212023,75397.0,75396.0,0.19994268]
[1730993533651,0.132647,75388.0,75387.0,0.19994268]
[1730993533845,0.26488802,75388.0,75387.0,0.19994268]
[1730993534088,0.13224102,75388.0,75382.0,0.002]
[1730993534279,0.265301,75386.0,75381.0,0.002]
[1730993534488,0.89753802,75387.0,75380.0,0.001664]
[1730993534489,0.132659,75381.0,75380.0,0.001664]
[1730993534699,0.26490002,75381.0,75380.0,0.001664]
[1730993535589,0.40440002,75381.0,75380.0,0.001664]
[1730993535813,0.40540002,75381.0,75380.0,0.001664]
[1730993536292,1.33500002,75381.0,75380.0,0.001664]
[1730993536510,0.260961,75380.0,75379.0,0.001664]
[1730993536744,0.96070202,75380.0,75379.0,0.001664]
[1730993537189,0.79974102,75380.0,75379.0,0.001664]
[1730993537413,0.5675,75380.0,75379.0,0.001664]